bitfinex/quotes_ETHUSD_20260310
["timestamp","ask_amount","ask_price","bid_price","bid_amount"]
[1773114168145,0.47754011,2040.2,2039.5,0.19583004]
[1773114168351,0.47754011,2040.2,2039.5,1.74583004]
[1773114168856,1.34642438,2040.2,2039.5,1.74583004]
[1773114169058,0.47754011,2040.0,2039.5,1.74583004]
[1773114169356,0.47754011,2039.9,2039.5,0.19583004]
[1773114169725,0.47754011,2039.9,2039.5,1.42161154]
[1773114170427,1.70300857,2040.1,2039.5,1.2257815]
[1773114170627,1.70300857,2040.1,2039.6,0.19583004]
[1773114171554,1.70300857,2040.1,2039.6,1.42153679]
[1773114172354,0.47754011,2040.1,2039.6,1.22570675]
[1773114172535,0.45456825,2040.2,2039.7,0.19583004]
[1773114172856,0.45456825,2040.2,2039.7,0.19683004]
[1773114173025,0.002,2039.8,2039.7,0.19683004]
[1773114175269,0.002,2039.8,2039.7,1.42250048]
[1773114176071,0.002,2039.8,2039.7,0.001]
[1773114177155,0.45656825,2039.8,2039.7,0.001]
[1773114178066,1.6821786,2039.8,2039.7,0.001]
[1773114178861,0.45456825,2039.7,2039.5,0.001]
[1773114179172,0.002,2039.8,2039.5,0.001]
[1773114179342,0.45656825,2039.8,2039.5,0.001]
[1773114181446,0.45456825,2039.7,2039.5,0.001]
[1773114181653,0.45456825,2039.7,2039.2,0.001]
[1773114181654,0.45456825,2039.6,2039.2,0.001]
[1773114183048,0.45456825,2039.5,2039.2,0.001]
[1773114183250,0.45456825,2039.7,2039.2,0.001]
[1773114183451,0.48801864,2039.6,2039.2,0.001]
[1773114185577,1.71380927,2039.5,2039.4,0.001]
[1773114185976,0.48801864,2039.5,2039.4,0.001]
[1773114186170,1.71369907,2039.7,2039.4,0.001]
[1773114186573,0.48801864,2039.6,2039.4,0.001]
[1773114187153,0.48801864,2039.6,2039.2,0.19783004]
[1773114187566,0.48801864,2039.5,2039.2,0.001]
[1773114189450,1.22572598,2039.7,2039.2,0.19783004]
[1773114189656,1.71374462,2039.7,2039.2,0.19783004]
[1773114189855,0.48801864,2039.6,2039.2,1.42379994]
[1773114190055,0.48801864,2039.6,2039.2,0.19783004]
[1773114190255,0.48801864,2039.7,2039.3,0.19683004]
[1773114190770,0.48801864,2039.7,2039.2,0.001]
[1773114192984,1.71374917,2039.6,2039.2,0.19783004]
[1773114193185,1.71374917,2039.6,2039.2,0.001]
[1773114193186,0.48801864,2039.5,2039.2,0.001]
[1773114194486,0.9,2039.6,2039.2,0.19783004]
[1773114194665,1.38801864,2039.6,2039.2,0.19783004]
[1773114194989,0.48801864,2039.5,2039.2,0.19783004]
[1773114195287,0.48801864,2039.3,2038.9,0.001]
[1773114195498,0.48801864,2039.1,2038.9,0.001]
[1773114195884,0.48801864,2039.4,2038.9,0.001]
[1773114196497,0.48801864,2039.3,2038.6,1.42312735]
[1773114196908,0.48801864,2039.3,2038.7,0.19683004]
[1773114197107,0.48801864,2039.1,2038.7,1.42308385]
[1773114197913,0.48801864,2039.1,2038.9,0.001]
[1773114198218,0.48801864,2039.1,2038.5,1.538]
[1773114198510,0.9,2039.0,2038.6,0.19783004]
[1773114198918,0.9,2039.0,2038.6,1.73683004]
[1773114199285,0.9,2039.0,2038.6,2.9631582]
[1773114199286,1.38801864,2039.0,2038.6,2.9631582]
[1773114199526,0.48801864,2038.9,2038.6,2.76732845]
[1773114199903,0.9,2039.0,2038.6,2.96415849]
[1773114200211,0.9,2039.0,2038.7,0.19683004]
[1773114200617,1.71400446,2039.2,2038.7,0.19683004]
[1773114200819,0.48801864,2039.1,2038.7,0.19683004]
[1773114201318,0.48801864,2039.1,2038.7,1.42304817]
[1773114202401,1.2259581,2039.3,2038.8,0.19683004]
[1773114202402,0.48801864,2039.3,2038.8,0.19683004]
[1773114202908,0.002,2039.4,2038.8,0.19683004]
[1773114203101,0.48801864,2039.3,2038.8,0.19683004]
[1773114203308,0.48801864,2039.3,2038.9,1.22615135]
[1773114203516,0.002,2039.4,2039.0,1.34642438]
[1773114203712,0.002,2039.4,2039.1,0.19683004]
[1773114204135,0.002,2039.4,2038.9,0.19683004]
[1773114204338,0.48801864,2039.3,2038.8,1.542]
[1773114204547,0.48801864,2039.3,2038.8,1.73883004]
[1773114204713,1.22787875,2039.4,2038.9,0.19683004]
[1773114204714,0.002,2039.4,2038.9,0.19683004]
[1773114205439,0.002,2039.4,2038.9,1.42293991]
[1773114206835,0.49001864,2039.4,2038.9,1.42293991]
[1773114207408,1.71589033,2039.4,2038.9,1.42293991]
[1773114207842,0.48801864,2039.3,2038.9,1.22610987]
[1773114208138,0.48801864,2039.3,2038.9,2.76910987]
[1773114208338,0.48801864,2039.3,2038.9,2.96597296]
[1773114208943,0.002,2039.4,2039.0,0.19683004]
[1773114209630,0.48801864,2039.3,2038.7,1.22622226]
[1773114209838,0.48801864,2039.3,2038.8,1.543]
[1773114210007,0.48801864,2039.3,2038.8,1.73983004]
[1773114210546,0.48801864,2039.3,2038.8,1.74083004]
[1773114210752,0.49001864,2039.2,2038.8,0.19783004]
[1773114210964,0.49001864,2039.2,2038.8,0.001]
[1773114211746,0.48801864,2039.1,2038.8,0.001]
[1773114211937,0.48801864,2039.1,2038.6,0.001]
[1773114212267,0.48801864,2039.1,2038.6,1.544]
[1773114212747,0.48801864,2039.1,2038.6,2.77033166]
[1773114212946,0.48801864,2039.1,2038.6,0.001]
[1773114213764,0.47376467,2038.9,2038.6,0.001]
[1773114214965,0.47376467,2039.0,2038.6,0.001]
[1773114215169,0.47376467,2039.0,2038.6,0.19783004]
[1773114215345,1.70178285,2039.2,2038.6,0.19783004]
[1773114215664,0.47376467,2039.1,2038.6,0.19783004]
[1773114215967,0.47376467,2039.0,2038.6,1.42412944]
[1773114216645,0.47376467,2039.0,2038.6,1.2272994]
[1773114216845,0.47376467,2039.0,2038.6,2.7712994]
[1773114217247,0.47376467,2039.1,2038.6,2.7712994]
[1773114217655,0.47376467,2039.1,2038.6,2.77132516]
[1773114218167,0.47376467,2039.0,2038.6,1.545]
[1773114218878,0.47376467,2039.0,2038.6,0.001]
[1773114219080,0.47376467,2039.0,2038.6,1.545]
[1773114219282,0.47376467,2039.0,2038.6,0.001]
[1773114219980,0.47376467,2038.9,2038.3,1.544]
[1773114220381,0.47376467,2038.7,2038.2,2.77054969]
[1773114220574,0.47376467,2038.7,2038.2,1.544]
[1773114221285,0.47376467,2038.7,2038.2,2.77056013]
[1773114221666,0.47376467,2038.7,2038.3,0.19683004]
[1773114221862,0.47376467,2038.9,2038.3,0.19683004]
[1773114223384,0.002,2039.2,2038.3,12.53850368]
[1773114223585,0.002,2039.2,2038.3,7.37350368]
[1773114223586,0.5,2039.1,2038.3,7.37350368]
[1773114223797,0.5,2039.0,2038.1,1.22657246]
[1773114223972,0.5,2039.0,2038.2,1.544]
[1773114224296,0.5,2039.0,2038.3,1.544]
[1773114224660,0.5,2039.0,2038.1,1.22657246]
[1773114224860,0.5,2039.0,2038.2,1.544]
[1773114225060,0.5,2039.0,2038.5,0.001]
[1773114225385,0.502,2038.7,2038.1,1.544]
[1773114225687,0.502,2038.7,2038.3,0.001]
[1773114227897,0.5,2038.6,2038.3,0.001]
[1773114228864,0.5,2038.6,2037.8,4.90720434]
[1773114228865,0.5,2038.6,2037.3,4.39946571]
[1773114229089,0.5,2038.6,2037.1,1.22718805]
[1773114229090,0.5,2037.6,2037.1,1.22718805]
[1773114229398,0.5,2037.6,2037.0,1.544]
[1773114229888,0.5,2037.5,2037.1,1.22723479]
[1773114230101,1.34845154,2037.3,2036.4,1.22765664]
[1773114230263,0.5,2037.2,2036.4,1.22765664]
[1773114230459,0.5,2037.2,2036.4,2.57610818]
[1773114230861,0.5,2037.2,2036.5,1.34845154]
[1773114231088,12.13606386,2038.2,2037.2,0.5]
[1773114231089,0.5,2038.2,2037.2,0.5]
[1773114231268,0.5,2037.9,2036.8,1.34845154]
[1773114231478,0.5,2037.9,2036.9,1.545]
[1773114231663,0.5,2037.9,2036.8,1.34845154]
[1773114231664,0.5,2037.9,2036.6,1.29]
[1773114231859,0.5,2037.8,2037.1,1.22723479]
[1773114232060,0.5,2037.8,2037.2,1.545]
[1773114232298,0.5,2037.7,2037.2,1.545]
[1773114232467,0.5,2037.7,2037.1,1.22723479]
[1773114232671,0.5,2037.6,2036.8,1.546]
[1773114233283,0.5,2037.6,2036.9,1.546]
[1773114233487,0.5,2037.6,2036.5,1.22753608]
[1773114233656,0.5,2037.6,2036.6,1.547]
[1773114233858,0.5,2037.6,2036.7,1.22747581]
[1773114234162,0.5,2037.5,2036.7,1.22747581]
[1773114234679,0.5,2037.5,2036.8,1.547]
[1773114234981,0.5,2037.5,2036.7,2.77447581]
[1773114235186,0.5,2037.5,2036.7,1.547]
[1773114235392,0.5,2037.5,2036.3,0.1622302]
[1773114235566,0.5,2037.2,2036.4,1.22765664]
[1773114236062,0.5,2037.1,2036.3,1.7102302]
[1773114236259,0.5,2036.7,2036.3,0.1622302]
[1773114236466,0.5,2036.7,2036.3,1.3899383]
[1773114236994,0.5,2036.7,2036.3,0.1622302]
[1773114237156,0.5,2036.7,2036.3,1.38992879]
[1773114237586,0.5,2036.7,2036.3,0.1622302]
[1773114238291,0.5,2036.7,2035.3,0.1622302]
[1773114238292,0.47905748,2036.5,2035.3,0.1622302]
[1773114239790,0.47905748,2036.5,2036.3,0.001]
[1773114240380,0.47905748,2036.4,2036.3,0.001]
[1773114240768,0.47905748,2036.4,2036.0,0.001]
[1773114241292,0.47905748,2036.4,2036.0,0.002]
[1773114241895,0.47905748,2036.9,2036.0,0.002]
[1773114242063,3.37379042,2037.0,2036.0,0.002]
[1773114242064,0.47905748,2037.0,2036.0,0.002]
[1773114242264,0.47905748,2037.0,2036.0,0.1642302]
[1773114242464,0.47905748,2036.9,2036.0,0.1642302]
[1773114242675,1.37905748,2036.8,2036.0,0.1642302]
[1773114243094,1.37905748,2036.8,2036.1,1.52]
[1773114243481,1.37905748,2036.8,2036.2,0.001]
[1773114243681,1.22727021,2037.1,2036.2,0.1622302]
[1773114243682,0.49888231,2037.1,2036.2,0.1622302]
[1773114244492,0.49888231,2037.0,2036.3,1.22771693]
[1773114244662,0.49888231,2037.0,2036.1,2.75283753]
[1773114244860,0.49888231,2037.0,2036.1,2.75383753]
[1773114245897,0.49888231,2037.0,2036.1,2.75583753]
[1773114246097,0.49888231,2037.0,2036.1,2.75683753]
[1773114246401,0.49888231,2037.0,2036.2,0.1622302]
[1773114246896,0.49888231,2037.0,2036.3,1.22771693]
[1773114247797,0.49888231,2037.1,2036.3,1.38994713]
[1773114248302,0.9,2036.9,2036.3,1.38994713]
[1773114248705,0.9,2036.9,2036.4,1.534]
[1773114248905,0.9,2036.9,2036.5,1.22759636]
[1773114249603,0.49888231,2037.1,2036.5,1.22759636]
[1773114250905,0.49888231,2037.1,2036.6,1.538]
[1773114251108,0.49888231,2037.1,2036.7,1.22747581]
[1773114252222,0.49888231,2037.2,2036.4,1.22765664]
[1773114252377,4.90800978,2037.5,2036.0,1.22888213]
[1773114252378,0.49888231,2036.6,2036.0,1.22888213]
[1773114252682,0.49888231,2036.6,2036.0,1.22889667]
[1773114253086,0.49888231,2036.6,2036.3,0.001]
[1773114253087,1.72642566,2036.6,2036.3,0.001]
[1773114253282,0.49888231,2036.5,2036.3,0.001]
[1773114253789,0.002,2036.8,2036.3,0.001]
[1773114253990,0.50088231,2036.8,2036.3,0.001]
[1773114254900,0.002,2036.8,2036.3,0.001]
[1773114255098,0.002,2036.8,2036.4,2.77165664]
[1773114255309,0.002,2036.8,2036.4,2.93388684]
[1773114258289,0.002,2036.8,2036.4,2.77165664]
[1773114260293,0.002,2036.8,2036.5,0.1622302]
[1773114260898,0.49888231,2037.2,2036.5,0.1622302]
[1773114261097,0.49888231,2037.5,2036.7,0.1602302]
[1773114261403,0.9,2037.3,2036.7,0.1602302]
[1773114262204,1.39888231,2037.3,2036.8,1.55]
[1773114262914,0.9,2037.3,2036.8,1.7102302]
[1773114263212,0.9,2037.3,2036.9,1.22735529]
[1773114263620,0.49888231,2037.5,2036.9,1.22735529]
[1773114266415,0.9,2037.4,2037.0,1.553]
[1773114266722,1.39888231,2037.4,2037.0,1.553]
[1773114267097,0.9,2037.4,2037.0,1.553]
[1773114267513,0.80253235,2037.4,2037.1,3.53402062]
[1773114267833,0.002,2037.7,2037.1,3.53402062]
[1773114268000,0.002,2037.7,2037.2,1.22717455]
[1773114268717,0.002,2037.5,2037.2,1.22717455]
[1773114270303,0.5,2038.5,2037.2,1.22717455]
[1773114270637,0.5,2038.4,2037.3,1.555]
[1773114271633,0.5,2038.4,2036.7,4.90943518]
[1773114271634,0.5,2037.9,2036.9,1.555]
[1773114272232,0.5,2037.9,2036.7,4.90987804]
[1773114272437,0.5,2037.7,2037.0,1.22729504]
[1773114273535,0.5,2037.7,2036.7,4.90984713]
[1773114273728,0.5,2037.7,2036.7,6.46584713]
[1773114274504,0.5,2037.6,2036.7,6.46584713]
[1773114276726,0.5,2037.4,2036.7,4.90984713]
[1773114277741,0.5,2036.9,2035.7,6.39304576]
[1773114277949,0.5,2036.7,2035.7,1.22804576]
[1773114278743,0.5,2036.7,2034.3,7.32189705]
[1773114278744,0.5,2036.5,2035.2,1.559]
[1773114280413,0.5,2036.5,2034.9,10.07877515]
[1773114280414,0.5,2036.2,2034.7,6.4745287]
[1773114280753,0.5,2036.0,2034.7,9.84831912]
[1773114281128,0.5,2036.0,2035.0,3.37379042]
[1773114282053,0.5,2036.0,2035.9,0.001]
[1773114282265,0.5,2036.0,2035.0,3.37379042]
[1773114282770,0.5,2036.0,2035.7,0.001]
[1773114282947,0.5,2035.9,2035.1,1.22844086]
[1773114283272,0.5,2035.9,2035.4,0.001]
[1773114286171,0.5,2035.7,2035.4,0.001]
[1773114286345,0.5,2035.7,2035.0,4.91376345]
[1773114286544,0.5,2035.7,2034.9,4.91400491]
[1773114288872,0.4995,2035.5,2034.9,4.91400491]
[1773114290805,0.4995,2035.5,2034.6,4.91478924]
[1773114291243,0.4995,2035.3,2034.6,4.91478924]
[1773114291647,0.4995,2035.3,2034.5,2.79077984]
[1773114291848,1.2282598,2035.4,2034.0,8.29734089]
[1773114291849,0.4995,2034.9,2034.0,1.22910521]
[1773114292083,0.4995,2034.9,2034.1,0.001]
[1773114292246,0.4995,2034.9,2034.1,3.38094932]
[1773114292450,0.4995,2035.3,2034.0,1.22910521]
[1773114292650,0.4995,2035.2,2034.0,1.23010521]
[1773114292980,0.4995,2035.2,2034.1,0.001]
[1773114294976,0.4995,2035.1,2034.3,0.002]
[1773114295181,0.5015,2035.3,2034.4,0.001]
[1773114295776,0.5015,2035.3,2034.4,1.564]
[1773114296191,0.002,2035.3,2034.5,0.001]
[1773114296362,0.002,2035.3,2034.8,0.001]
[1773114297960,0.5015,2035.3,2034.6,1.22974275]
[1773114298493,0.5015,2035.3,2034.6,2.79274275]
[1773114300959,0.5015,2035.3,2034.3,1.22990277]
[1773114300960,0.4995,2035.2,2034.3,1.22990277]
[1773114301153,0.4995,2035.1,2034.3,1.22992334]
[1773114301457,1.23036386,2035.3,2034.5,3.38194932]
[1773114301458,0.5015,2035.3,2034.5,3.38194932]
[1773114301662,0.5015,2035.3,2034.6,0.001]
[1773114301862,0.5015,2035.3,2034.6,1.22974275]
[1773114302269,0.4995,2035.2,2034.3,0.001]
[1773114302962,0.4995,2035.0,2034.3,1.22992316]
[1773114303367,0.4995,2035.0,2034.3,0.001]
[1773114303859,0.4995,2034.8,2034.3,0.001]
[1773114304090,0.4995,2034.8,2034.0,1.23010521]
[1773114304590,0.4995,2034.8,2034.0,0.001]
[1773114304808,0.4995,2034.8,2033.4,4.9178424]
[1773114304995,0.499,2034.6,2033.4,4.9178424]
[1773114305709,0.499,2034.3,2033.2,1.22958882]
[1773114306201,0.499,2034.1,2033.2,1.22958882]
[1773114306904,0.499,2034.1,2033.1,1.22961771]
[1773114306905,0.499,2034.0,2033.1,1.22961771]
[1773114307108,4.91593746,2034.3,2033.1,1.22961771]
[1773114307109,0.4922163,2034.6,2033.2,0.4913759]
[1773114307309,0.4922163,2034.6,2032.7,4.91956377]
[1773114307310,0.065536,2034.4,2032.7,4.91956377]
[1773114307471,0.4922163,2034.2,2033.0,3.38094932]
[1773114307672,0.4922163,2034.2,2033.1,0.4913759]
[1773114308006,0.4922163,2034.2,2033.4,1.22946788]
[1773114308205,0.4922163,2034.4,2033.5,0.4913759]
[1773114308374,0.4922163,2034.4,2033.4,1.22946788]
[1773114309076,0.4922163,2034.4,2033.1,9.84782086]
[1773114309077,0.4922163,2034.2,2033.0,1.72108568]
[1773114309410,0.4922163,2034.2,2033.0,5.102035]
[1773114309574,0.4922163,2034.2,2033.5,0.001]
[1773114310392,0.4922163,2034.5,2033.5,0.001]
[1773114310587,0.4922163,2034.4,2033.5,0.001]
[1773114310986,0.4922163,2034.4,2033.5,3.87332522]
[1773114311410,0.002,2034.6,2033.6,0.4913759]
[1773114311606,0.4942163,2034.6,2033.7,3.87232522]
[1773114311780,0.4942163,2034.6,2033.7,0.4913759]
[1773114312506,0.4942163,2034.6,2033.8,1.72060197]
[1773114312875,0.002,2034.6,2034.0,0.4913759]
[1773114313808,0.4922163,2035.2,2034.3,0.4913759]
[1773114314009,0.4922163,2035.2,2034.3,3.38094932]
[1773114314010,0.4922163,2035.1,2034.3,3.38094932]
[1773114314211,0.4922163,2035.1,2034.2,1.555]
[1773114314383,0.4922163,2035.1,2034.3,1.22892395]
[1773114314583,0.4922163,2035.1,2034.3,1.72029985]
[1773114315114,0.002,2035.3,2034.5,3.87232522]
[1773114315797,0.4942163,2035.3,2034.5,3.87232522]
[1773114316310,0.4942163,2035.3,2034.5,3.38094932]
[1773114316492,0.4942163,2035.3,2034.6,1.22874275]
[1773114317221,0.4942163,2035.3,2034.2,4.914971]
[1773114317222,0.4922163,2035.2,2034.2,4.91593062]
[1773114317791,3.38094932,2035.2,2034.2,1.22898436]
[1773114317994,0.4922163,2035.1,2033.9,1.22916564]
[1773114318598,0.4922163,2035.1,2033.8,4.91666256]
[1773114318599,0.4922163,2034.9,2033.8,3.87232522]
[1773114318784,0.4922163,2034.9,2034.1,3.38094932]
[1773114319014,0.4922163,2034.9,2033.9,0.4913759]
[1773114319395,0.4922163,2034.9,2034.2,0.4913759]
[1773114320123,0.4922163,2035.2,2034.3,0.4913759]
[1773114320615,1.23032936,2035.3,2034.4,1.22886354]
[1773114320616,0.4922163,2035.0,2034.4,1.22886354]
[1773114321594,0.4942163,2035.3,2034.4,1.72023944]
[1773114321795,0.4922163,2035.2,2034.4,1.72023944]
[1773114323208,0.4922163,2035.2,2034.5,0.4913759]
[1773114323416,0.002,2035.3,2034.6,3.87232522]
[1773114323597,0.002,2035.3,2034.4,1.22886354]
[1773114323598,0.4942163,2035.3,2034.4,1.22886354]
[1773114323800,0.4922163,2035.2,2034.4,1.22986354]
[1773114324006,0.002,2034.7,2034.4,1.22986354]
[1773114326110,0.38800031,2035.0,2034.4,1.22986354]
[1773114326818,0.38800031,2035.0,2034.4,0.001]
[1773114327019,0.4922163,2034.9,2034.4,0.001]
[1773114327413,0.4922163,2034.9,2034.2,0.001]
[1773114327641,0.4922163,2034.9,2033.9,1.23011798]
[1773114328342,0.4922163,2034.9,2033.9,1.23014539]
[1773114328837,0.4922163,2034.8,2033.9,1.23014539]
[1773114329134,0.4922163,2034.6,2033.9,0.001]
[1773114330737,0.4922163,2034.6,2033.0,1.72108568]
[1773114330738,0.4922163,2033.8,2033.0,1.72108568]
[1773114331102,0.4922163,2033.7,2032.8,1.22979113]
[1773114331310,0.4922163,2033.6,2032.6,2.78890756]
[1773114331605,0.4922163,2033.6,2032.3,1.23009547]
[1773114333047,0.4922163,2033.1,2032.2,1.39241722]
[1773114333203,0.4922163,2033.1,2032.2,0.1622302]
[1773114333550,0.4922163,2033.1,2032.2,1.39240485]
[1773114333840,0.4922163,2033.1,2032.2,1.39241184]
[1773114334138,0.4922163,2033.1,2032.2,1.39241753]
[1773114334540,0.45101003,2033.0,2032.2,0.1622302]
[1773114334946,1.22958882,2033.2,2032.2,0.1622302]
[1773114334947,0.45101003,2032.8,2032.2,0.1622302]
[1773114335248,0.45101003,2032.6,2032.2,0.1622302]
[1773114335758,0.45101003,2032.6,2032.2,0.06524566]
[1773114336449,0.45101003,2032.6,2031.5,1.23061777]
[1773114336873,0.45101003,2032.6,2031.6,0.45647365]
[1773114337333,0.45101003,2032.9,2031.9,0.45647365]
[1773114337844,0.45101003,2033.2,2032.2,0.45647365]
[1773114338236,0.45101003,2033.2,2032.3,3.38094932]
[1773114338469,0.45101003,2033.6,2032.4,0.45747365]
[1773114339148,0.45101003,2033.5,2032.5,1.2300123]
[1773114339366,0.45101003,2033.5,2032.5,1.68648595]
[1773114339660,0.45101003,2033.5,2032.5,1.2300123]
[1773114339879,0.45101003,2033.4,2032.5,1.2300123]
[1773114340959,0.45101003,2033.4,2032.6,0.45647365]
[1773114341260,0.45301003,2033.7,2032.9,1.22977027]
[1773114341471,0.002,2033.7,2033.0,0.45647365]
[1773114341630,0.002,2033.7,2033.1,3.38094932]
[1773114341829,0.002,2033.7,2033.0,0.45647365]
[1773114343466,0.002,2033.7,2033.1,1.68612295]
[1773114343765,0.002,2033.7,2033.1,1.2296493]
[1773114343976,0.45301003,2033.7,2032.9,1.22977027]
[1773114344180,0.45301003,2033.7,2032.6,1.22995178]
[1773114344536,0.45301003,2033.7,2032.7,3.83742297]
[1773114344737,0.45301003,2033.7,2033.0,3.38094932]
[1773114345240,0.45301003,2033.7,2032.8,1.22983077]
[1773114345241,0.45101003,2033.6,2032.8,1.22983077]
[1773114345679,1.23129136,2033.7,2033.0,3.83742297]
[1773114345680,0.002,2033.7,2033.0,3.83742297]
[1773114346671,0.002,2033.7,2033.0,0.45647365]
[1773114347463,0.45301003,2033.7,2033.1,1.2296493]
[1773114347780,0.45301003,2033.7,2032.5,3.24948595]
[1773114348142,0.45301003,2033.7,2032.5,1.68648595]
[1773114348768,0.45301003,2033.7,2032.5,5.07417914]
[1773114349146,0.45301003,2033.7,2032.5,1.68648595]
[1773114349768,1.68233578,2033.7,2032.6,0.47463066]
[1773114349969,1.68233578,2033.7,2032.4,4.9210492]
[1773114349970,0.45604576,2033.2,2032.4,0.001]
[1773114352538,1.68548485,2033.5,2032.4,3.38869319]
[1773114352750,1.68548485,2033.5,2032.5,0.47463066]
[1773114353351,1.68548045,2033.5,2032.5,0.47463066]
[1773114353973,0.45604576,2033.4,2032.5,0.47463066]
[1773114354664,1.68557411,2033.3,2032.6,1.22995178]
[1773114355046,0.45604576,2033.2,2032.6,1.22995178]
[1773114356654,0.45604576,2033.2,2032.4,0.001]
[1773114357786,0.45604576,2033.5,2032.6,0.47463066]
[1773114357945,0.45604576,2033.5,2032.4,0.47563066]
[1773114359665,1.22946788,2033.4,2032.4,0.001]
[1773114359978,0.45604576,2033.3,2032.4,0.001]
[1773114361273,0.45604576,2033.3,2032.5,0.47463066]
[1773114361449,0.45604576,2033.3,2032.4,0.001]
[1773114362752,1.22958882,2033.2,2032.4,0.001]
[1773114362958,0.45604576,2033.1,2032.4,0.001]
[1773114363272,0.45604576,2033.0,2032.2,0.001]
[1773114364879,0.46253132,2032.8,2032.2,0.001]
[1773114366177,0.46253132,2032.8,2031.6,8.31243745]
[1773114366178,0.46253132,2032.6,2031.6,1.23351345]
[1773114366688,0.46253132,2032.6,2031.6,1.23354778]
[1773114366858,1.69254362,2032.5,2032.4,0.001]
[1773114367054,0.46253132,2032.4,2031.6,0.003]
[1773114367873,0.46253132,2032.4,2032.2,0.001]
[1773114368084,0.46253132,2032.4,2031.6,0.003]
[1773114368786,0.46253132,2032.4,2031.9,0.001]
[1773114369291,0.46253132,2032.4,2031.4,0.47116648]
[1773114369292,0.46253132,2032.1,2030.7,1.70223506]
[1773114369452,0.46253132,2031.8,2030.7,1.70223506]
[1773114369797,0.46253132,2031.8,2030.9,0.47116648]
[1773114369996,0.46253132,2032.1,2031.0,0.47116648]
[1773114370347,0.46253132,2031.8,2030.7,1.23106858]
[1773114370588,0.46253132,2031.6,2030.5,5.39596913]
[1773114370950,0.46253132,2031.5,2030.4,3.7302562]
[1773114371202,0.46253132,2031.3,2030.2,1.70253186]
[1773114371351,0.46253132,2031.2,2030.2,1.23136538]
[1773114372492,0.46253132,2031.2,2030.0,5.39727045]
[1773114372692,0.46253132,2031.2,2030.1,0.47116648]
[1773114373189,0.46253132,2031.0,2030.2,1.23140577]
[1773114373693,0.46253132,2031.0,2028.6,1.47879273]
[1773114373998,0.46253132,2030.8,2029.6,3.85885967]
[1773114374314,0.46253132,2030.8,2029.4,2.49900516]
[1773114374315,0.46253132,2030.8,2030.0,0.47116648]
[1773114374463,0.46253132,2031.0,2030.0,0.47116648]
[1773114375088,0.46253132,2031.0,2030.7,0.003]
[1773114375385,0.46253132,2031.0,2030.2,1.70257225]
[1773114375587,0.46253132,2031.3,2030.3,0.47116648]
[1773114375770,0.46253132,2031.2,2030.3,0.47116648]
[1773114375969,0.46253132,2031.2,2030.4,0.47116648]
[1773114376299,0.46253132,2031.5,2030.4,0.47116648]
[1773114376593,0.46253132,2031.5,2030.3,0.47116648]
[1773114376792,0.46253132,2031.5,2030.5,0.47116648]
[1773114377282,0.46253132,2031.5,2030.6,1.2311632]
[1773114377481,0.46253132,2031.4,2030.6,1.2311632]
[1773114378795,1.23061735,2031.6,2030.6,1.2311632]
[1773114379016,0.46253132,2031.6,2030.7,0.47116648]
[1773114379628,0.46253132,2031.9,2030.9,0.47116648]
[1773114379949,0.46253132,2031.9,2030.8,1.23104195]
[1773114379950,0.46253132,2031.8,2031.0,0.47116648]
[1773114380092,0.46253132,2031.8,2030.8,1.23104195]
[1773114380294,0.46253132,2031.8,2031.0,3.38769319]
[1773114380712,0.46253132,2031.8,2030.8,1.70220843]
[1773114380896,0.46253132,2031.8,2030.8,1.23104195]
[1773114381093,0.46253132,2031.8,2031.2,0.001]
[1773114381514,0.46253132,2031.6,2031.2,0.001]
[1773114382227,0.46253132,2032.4,2031.2,0.001]
[1773114382526,0.46253132,2032.3,2031.2,0.001]
[1773114382716,0.46253132,2032.1,2031.2,0.001]
[1773114382906,0.46253132,2031.8,2031.2,0.001]
[1773114383726,1.23049662,2031.7,2031.2,0.001]
[1773114384029,0.46253132,2031.6,2031.2,0.001]
[1773114384526,0.46253132,2031.6,2031.0,0.001]
[1773114385039,0.46253132,2031.5,2030.2,1.23140577]
[1773114385212,3.38769319,2031.6,2029.7,0.47116648]
[1773114385213,0.46253132,2030.9,2029.7,0.47116648]
[1773114386106,1.69357327,2030.8,2029.8,1.70281491]
[1773114386298,0.46253132,2030.7,2029.8,1.23164843]
[1773114387333,0.46253132,2030.7,2029.6,1.23172313]
[1773114387629,0.46253132,2030.4,2029.2,1.23201261]
[1773114388247,0.46253132,2030.2,2029.2,1.23201261]
[1773114389337,0.46253132,2030.1,2029.0,4.92835716]
[1773114389522,0.46253132,2030.1,2029.0,4.36593981]
[1773114389920,0.46253132,2029.8,2028.9,2.01006245]
[1773114390427,0.46253132,2029.6,2028.9,2.01006245]
[1773114392265,1.69433734,2029.6,2028.9,2.01006245]
[1773114392462,0.46253132,2029.9,2029.0,0.47116648]
[1773114392761,1.6941323,2029.9,2029.0,0.47116648]
[1773114392965,0.46253132,2029.8,2028.9,2.01006245]
[1773114393269,0.46253132,2029.7,2028.1,0.1622302]
[1773114393436,0.46253132,2029.7,2027.7,2.97017164]
[1773114393437,0.49291414,2028.9,2027.7,2.97017164]
[1773114393631,0.49291414,2028.9,2027.3,4.93221165]
[1773114393632,0.49291414,2028.6,2027.5,0.4677049]
[1773114394049,0.49291414,2028.6,2027.3,2.78516477]
[1773114394245,1.23243776,2028.5,2027.3,2.78516477]
[1773114394463,0.49291414,2028.4,2027.2,0.4677049]
[1773114394663,0.49291414,2028.3,2027.2,0.4677049]
[1773114394885,0.49291414,2027.9,2026.9,1.553]
[1773114395068,0.49291414,2028.2,2026.9,0.4677049]
[1773114395362,0.49291414,2028.2,2027.0,0.4677049]
[1773114395875,0.49291414,2028.2,2026.8,8.77283721]
[1773114396083,0.49291414,2028.2,2026.8,7.53936949]
[1773114396278,0.49291414,2027.8,2026.8,5.98536949]
[1773114396449,0.49291414,2027.8,2026.7,0.4677049]
[1773114396772,0.49291414,2027.8,2026.8,0.4677049]
[1773114396971,0.49291414,2027.8,2026.7,1.23351955]
[1773114396972,0.49291414,2027.8,2026.5,3.0653812]
[1773114397335,0.49291414,2027.8,2026.5,4.6213812]
[1773114397582,3.92066787,2027.9,2026.8,0.4677049]
[1773114397744,1.23255928,2028.3,2027.3,3.38769319]
[1773114397943,1.23255928,2028.3,2027.4,0.4677049]